Workbook

Sheet (673)
A1: Hurdle | B1: Rate
A3: 0 | B3: 0.1 | D3: Dave Patton from Mr excel Message Board:
A4: 20000 | B4: 0.15 | D4: http://www.mrexcel.com/forum/showthread.php?p=2388808#post2388808
A5: 40000 | B5: 0.2
A6: 60000 | B6: 0.25
B8: Jan | C8: Feb | D8: Mar | E8: Apr | F8: May | G8: Jun | H8: Jul | I8: Aug | J8: Sep | K8: Oct | L8: Nov | M8: Dec
A9: Sales | B9: 15000 | C9: 20000 | D9: 10000 | E9: 18000 | F9: 10000
A10: Formula 1
A12: cum
C14: (20000-15000)*0.1 | D14: =(20000-15000)*0.1 -> 500
C15: (35000-20000)*0.15 | D15: =(35000-20000)*0.15 -> 2250 | E15: =SUM(D14:D15) -> 2750
C16: 35000*.1 | D16: =(35000*0.1) -> 3500
C17: 15000*.05 | D17: =15000*0.05 -> 750 | E17: =SUM(D16:D17) -> 4250
C18: 1500 | D18: 1500 | E18: =E17-D18 -> 2750
A20: Formula 2 | B20: =IF(VLOOKUP(SUM($B9:B9),$A$3:$A$6,1)-SUM(A9:$B9)<0,B9*VLOOKUP(SUM($B9:B9),$A$3:$B$6,2),(VLOOKUP(SUM($B9:B9),$A$3:$A$6,1)-SUM(A9:$B9))*INDEX($B$3:$B$6,MATCH(SUM($B9:B9),$A$3:$A$6)-1)+(SUM($B9:B9)-VLOOKUP(SUM($B9:B9),$A$3:$A$6,1))*INDEX($B$3:$B$6,MATCH(SUM($B9:B9),$A$3:$A$6))) -> 1500 | C20: =IF(VLOOKUP(SUM($B9:C9),$A$3:$A$6,1)-SUM(B9:$B9)<0,C9*VLOOKUP(SUM($B9:C9),$A$3:$B$6,2),(VLOOKUP(SUM($B9:C9),$A$3:$A$6,1)-SUM(B9:$B9))*INDEX($B$3:$B$6,MATCH(SUM($B9:C9),$A$3:$A$6)-1)+(SUM($B9:C9)-VLOOKUP(SUM($B9:C9),$A$3:$A$6,1))*INDEX($B$3:$B$6,MATCH(SUM($B9:C9),$A$3:$A$6))) -> 2750 | D20: =IF(VLOOKUP(SUM($B9:D9),$A$3:$A$6,1)-SUM($B9:C9)<0,D9*VLOOKUP(SUM($B9:D9),$A$3:$B$6,2),(VLOOKUP(SUM($B9:D9),$A$3:$A$6,1)-SUM($B9:C9))*INDEX($B$3:$B$6,MATCH(SUM($B9:D9),$A$3:$A$6)-1)+(SUM($B9:D9)-VLOOKUP(SUM($B9:D9),$A$3:$A$6,1))*INDEX($B$3:$B$6,MATCH(SUM($B9:D9),$A$3:$A$6))) -> 1750 | E20: =IF(VLOOKUP(SUM($B9:E9),$A$3:$A$6,1)-SUM($B9:D9)<0,E9*VLOOKUP(SUM($B9:E9),$A$3:$B$6,2),(VLOOKUP(SUM($B9:E9),$A$3:$A$6,1)-SUM($B9:D9))*INDEX($B$3:$B$6,MATCH(SUM($B9:E9),$A$3:$A$6)-1)+(SUM($B9:E9)-VLOOKUP(SUM($B9:E9),$A$3:$A$6,1))*INDEX($B$3:$B$6,MATCH(SUM($B9:E9),$A$3:$A$6))) -> 3750 | F20: =IF(VLOOKUP(SUM($B9:F9),$A$3:$A$6,1)-SUM($B9:E9)<0,F9*VLOOKUP(SUM($B9:F9),$A$3:$B$6,2),(VLOOKUP(SUM($B9:F9),$A$3:$A$6,1)-SUM($B9:E9))*INDEX($B$3:$B$6,MATCH(SUM($B9:F9),$A$3:$A$6)-1)+(SUM($B9:F9)-VLOOKUP(SUM($B9:F9),$A$3:$A$6,1))*INDEX($B$3:$B$6,MATCH(SUM($B9:F9),$A$3:$A$6))) -> 2500 | G20: =IF(VLOOKUP(SUM($B9:G9),$A$3:$A$6,1)-SUM($B9:F9)<0,G9*VLOOKUP(SUM($B9:G9),$A$3:$B$6,2),(VLOOKUP(SUM($B9:G9),$A$3:$A$6,1)-SUM($B9:F9))*INDEX($B$3:$B$6,MATCH(SUM($B9:G9),$A$3:$A$6)-1)+(SUM($B9:G9)-VLOOKUP(SUM($B9:G9),$A$3:$A$6,1))*INDEX($B$3:$B$6,MATCH(SUM($B9:G9),$A$3:$A$6))) -> 0 | H20: =IF(VLOOKUP(SUM($B9:H9),$A$3:$A$6,1)-SUM($B9:G9)<0,H9*VLOOKUP(SUM($B9:H9),$A$3:$B$6,2),(VLOOKUP(SUM($B9:H9),$A$3:$A$6,1)-SUM($B9:G9))*INDEX($B$3:$B$6,MATCH(SUM($B9:H9),$A$3:$A$6)-1)+(SUM($B9:H9)-VLOOKUP(SUM($B9:H9),$A$3:$A$6,1))*INDEX($B$3:$B$6,MATCH(SUM($B9:H9),$A$3:$A$6))) -> 0 | I20: =IF(VLOOKUP(SUM($B9:I9),$A$3:$A$6,1)-SUM($B9:H9)<0,I9*VLOOKUP(SUM($B9:I9),$A$3:$B$6,2),(VLOOKUP(SUM($B9:I9),$A$3:$A$6,1)-SUM($B9:H9))*INDEX($B$3:$B$6,MATCH(SUM($B9:I9),$A$3:$A$6)-1)+(SUM($B9:I9)-VLOOKUP(SUM($B9:I9),$A$3:$A$6,1))*INDEX($B$3:$B$6,MATCH(SUM($B9:I9),$A$3:$A$6))) -> 0 | J20: =IF(VLOOKUP(SUM($B9:J9),$A$3:$A$6,1)-SUM($B9:I9)<0,J9*VLOOKUP(SUM($B9:J9),$A$3:$B$6,2),(VLOOKUP(SUM($B9:J9),$A$3:$A$6,1)-SUM($B9:I9))*INDEX($B$3:$B$6,MATCH(SUM($B9:J9),$A$3:$A$6)-1)+(SUM($B9:J9)-VLOOKUP(SUM($B9:J9),$A$3:$A$6,1))*INDEX($B$3:$B$6,MATCH(SUM($B9:J9),$A$3:$A$6))) -> 0 | K20: =IF(VLOOKUP(SUM($B9:K9),$A$3:$A$6,1)-SUM($B9:J9)<0,K9*VLOOKUP(SUM($B9:K9),$A$3:$B$6,2),(VLOOKUP(SUM($B9:K9),$A$3:$A$6,1)-SUM($B9:J9))*INDEX($B$3:$B$6,MATCH(SUM($B9:K9),$A$3:$A$6)-1)+(SUM($B9:K9)-VLOOKUP(SUM($B9:K9),$A$3:$A$6,1))*INDEX($B$3:$B$6,MATCH(SUM($B9:K9),$A$3:$A$6))) -> 0 | L20: =IF(VLOOKUP(SUM($B9:L9),$A$3:$A$6,1)-SUM($B9:K9)<0,L9*VLOOKUP(SUM($B9:L9),$A$3:$B$6,2),(VLOOKUP(SUM($B9:L9),$A$3:$A$6,1)-SUM($B9:K9))*INDEX($B$3:$B$6,MATCH(SUM($B9:L9),$A$3:$A$6)-1)+(SUM($B9:L9)-VLOOKUP(SUM($B9:L9),$A$3:$A$6,1))*INDEX($B$3:$B$6,MATCH(SUM($B9:L9),$A$3:$A$6))) -> 0 | M20: =IF(VLOOKUP(SUM($B9:M9),$A$3:$A$6,1)-SUM($B9:L9)<0,M9*VLOOKUP(SUM($B9:M9),$A$3:$B$6,2),(VLOOKUP(SUM($B9:M9),$A$3:$A$6,1)-SUM($B9:L9))*INDEX($B$3:$B$6,MATCH(SUM($B9:M9),$A$3:$A$6)-1)+(SUM($B9:M9)-VLOOKUP(SUM($B9:M9),$A$3:$A$6,1))*INDEX($B$3:$B$6,MATCH(SUM($B9:M9),$A$3:$A$6))) -> 0
A21: Formula 3 | B21: =IF(B9<=$A$25,B9*$B$3,IF(B9<=$A$26,($A$25*$B$3)+((B9-$A$25)*$B$4),IF(B9<=$A$27,($A$25*$B$3)+(($A$26-$A$25)*$B$4)+((B9-$A$26)*$B$5),($A$25*$B$3)+(($A$26-$A$25)*$B$4)+(($A$27-$A$26)*$B$5)+((B9-$A$27)*$B$6)))) -> 1500 | C21: =IF(SUM($B9:C9)<=$A$25,SUM($B9:C9)*$B$3,IF(SUM($B9:C9)<=$A$26,($A$25*$B$3)+((SUM($B9:C9)-$A$25)*$B$4),IF(SUM($B9:C9)<=$A$27,($A$25*$B$3)+(($A$26-$A$25)*$B$4)+((SUM($B9:C9)-$A$26)*$B$5),($A$25*$B$3)+(($A$26-$A$25)*$B$4)+(($A$27-$A$26)*$B$5)+((SUM($B9:C9)-$A$27)*$B$6))))-SUM($B21:B21) -> 2750 | D21: =IF(SUM($B9:D9)<=$A$25,SUM($B9:D9)*$B$3,IF(SUM($B9:D9)<=$A$26,($A$25*$B$3)+((SUM($B9:D9)-$A$25)*$B$4),IF(SUM($B9:D9)<=$A$27,($A$25*$B$3)+(($A$26-$A$25)*$B$4)+((SUM($B9:D9)-$A$26)*$B$5),($A$25*$B$3)+(($A$26-$A$25)*$B$4)+(($A$27-$A$26)*$B$5)+((SUM($B9:D9)-$A$27)*$B$6))))-SUM($B21:C21) -> 1750 | E21: =IF(SUM($B9:E9)<=$A$25,SUM($B9:E9)*$B$3,IF(SUM($B9:E9)<=$A$26,($A$25*$B$3)+((SUM($B9:E9)-$A$25)*$B$4),IF(SUM($B9:E9)<=$A$27,($A$25*$B$3)+(($A$26-$A$25)*$B$4)+((SUM($B9:E9)-$A$26)*$B$5),($A$25*$B$3)+(($A$26-$A$25)*$B$4)+(($A$27-$A$26)*$B$5)+((SUM($B9:E9)-$A$27)*$B$6))))-SUM($B21:D21) -> 3750 | F21: =IF(SUM($B9:F9)<=$A$25,SUM($B9:F9)*$B$3,IF(SUM($B9:F9)<=$A$26,($A$25*$B$3)+((SUM($B9:F9)-$A$25)*$B$4),IF(SUM($B9:F9)<=$A$27,($A$25*$B$3)+(($A$26-$A$25)*$B$4)+((SUM($B9:F9)-$A$26)*$B$5),($A$25*$B$3)+(($A$26-$A$25)*$B$4)+(($A$27-$A$26)*$B$5)+((SUM($B9:F9)-$A$27)*$B$6))))-SUM($B21:E21) -> 2500 | G21: =IF(SUM($B9:G9)<=$A$25,SUM($B9:G9)*$B$3,IF(SUM($B9:G9)<=$A$26,($A$25*$B$3)+((SUM($B9:G9)-$A$25)*$B$4),IF(SUM($B9:G9)<=$A$27,($A$25*$B$3)+(($A$26-$A$25)*$B$4)+((SUM($B9:G9)-$A$26)*$B$5),($A$25*$B$3)+(($A$26-$A$25)*$B$4)+(($A$27-$A$26)*$B$5)+((SUM($B9:G9)-$A$27)*$B$6))))-SUM($B21:F21) -> 0 | H21: =IF(SUM($B9:H9)<=$A$25,SUM($B9:H9)*$B$3,IF(SUM($B9:H9)<=$A$26,($A$25*$B$3)+((SUM($B9:H9)-$A$25)*$B$4),IF(SUM($B9:H9)<=$A$27,($A$25*$B$3)+(($A$26-$A$25)*$B$4)+((SUM($B9:H9)-$A$26)*$B$5),($A$25*$B$3)+(($A$26-$A$25)*$B$4)+(($A$27-$A$26)*$B$5)+((SUM($B9:H9)-$A$27)*$B$6))))-SUM($B21:G21) -> 0 | I21: =IF(SUM($B9:I9)<=$A$25,SUM($B9:I9)*$B$3,IF(SUM($B9:I9)<=$A$26,($A$25*$B$3)+((SUM($B9:I9)-$A$25)*$B$4),IF(SUM($B9:I9)<=$A$27,($A$25*$B$3)+(($A$26-$A$25)*$B$4)+((SUM($B9:I9)-$A$26)*$B$5),($A$25*$B$3)+(($A$26-$A$25)*$B$4)+(($A$27-$A$26)*$B$5)+((SUM($B9:I9)-$A$27)*$B$6))))-SUM($B21:H21) -> 0 | J21: =IF(SUM($B9:J9)<=$A$25,SUM($B9:J9)*$B$3,IF(SUM($B9:J9)<=$A$26,($A$25*$B$3)+((SUM($B9:J9)-$A$25)*$B$4),IF(SUM($B9:J9)<=$A$27,($A$25*$B$3)+(($A$26-$A$25)*$B$4)+((SUM($B9:J9)-$A$26)*$B$5),($A$25*$B$3)+(($A$26-$A$25)*$B$4)+(($A$27-$A$26)*$B$5)+((SUM($B9:J9)-$A$27)*$B$6))))-SUM($B21:I21) -> 0 | K21: =IF(SUM($B9:K9)<=$A$25,SUM($B9:K9)*$B$3,IF(SUM($B9:K9)<=$A$26,($A$25*$B$3)+((SUM($B9:K9)-$A$25)*$B$4),IF(SUM($B9:K9)<=$A$27,($A$25*$B$3)+(($A$26-$A$25)*$B$4)+((SUM($B9:K9)-$A$26)*$B$5),($A$25*$B$3)+(($A$26-$A$25)*$B$4)+(($A$27-$A$26)*$B$5)+((SUM($B9:K9)-$A$27)*$B$6))))-SUM($B21:J21) -> 0 | L21: =IF(SUM($B9:L9)<=$A$25,SUM($B9:L9)*$B$3,IF(SUM($B9:L9)<=$A$26,($A$25*$B$3)+((SUM($B9:L9)-$A$25)*$B$4),IF(SUM($B9:L9)<=$A$27,($A$25*$B$3)+(($A$26-$A$25)*$B$4)+((SUM($B9:L9)-$A$26)*$B$5),($A$25*$B$3)+(($A$26-$A$25)*$B$4)+(($A$27-$A$26)*$B$5)+((SUM($B9:L9)-$A$27)*$B$6))))-SUM($B21:K21) -> 0 | M21: =IF(SUM($B9:M9)<=$A$25,SUM($B9:M9)*$B$3,IF(SUM($B9:M9)<=$A$26,($A$25*$B$3)+((SUM($B9:M9)-$A$25)*$B$4),IF(SUM($B9:M9)<=$A$27,($A$25*$B$3)+(($A$26-$A$25)*$B$4)+((SUM($B9:M9)-$A$26)*$B$5),($A$25*$B$3)+(($A$26-$A$25)*$B$4)+(($A$27-$A$26)*$B$5)+((SUM($B9:M9)-$A$27)*$B$6))))-SUM($B21:L21) -> 0
A24: Max
A25: 20000
A26: 40000
A27: 60000

Sheet (673an)
A1: Hurdle | B1: Rate
A3: 0 | B3: 0.1 | D3: Dave Patton from Mr excel Message Board:
A4: 20000 | B4: 0.15 | D4: http://www.mrexcel.com/forum/showthread.php?p=2388808#post2388808
A5: 40000 | B5: 0.2
A6: 60000 | B6: 0.25
B8: Jan | C8: Feb | D8: Mar | E8: Apr | F8: May | G8: Jun | H8: Jul | I8: Aug | J8: Sep | K8: Oct | L8: Nov | M8: Dec
A9: Sales | B9: 15000 | C9: 20000 | D9: 10000 | E9: 18000 | F9: 10000
A10: Formula 1 | B10: =SUMPRODUCT(--(SUM($B9:B9)>=$A$3:$A$6),SUM($B9:B9)-$A$3:$A$6,$B$3:$B$6-$B$2:$B$5)-SUM($A10:A10) -> 1500 | C10: =SUMPRODUCT(--(SUM($B9:C9)>=$A$3:$A$6),SUM($B9:C9)-$A$3:$A$6,$B$3:$B$6-$B$2:$B$5)-SUM($A10:B10) -> 2750 | D10: =SUMPRODUCT(--(SUM($B9:D9)>=$A$3:$A$6),SUM($B9:D9)-$A$3:$A$6,$B$3:$B$6-$B$2:$B$5)-SUM($A10:C10) -> 1750 | E10: =SUMPRODUCT(--(SUM($B9:E9)>=$A$3:$A$6),SUM($B9:E9)-$A$3:$A$6,$B$3:$B$6-$B$2:$B$5)-SUM($A10:D10) -> 3750 | F10: =SUMPRODUCT(--(SUM($B9:F9)>=$A$3:$A$6),SUM($B9:F9)-$A$3:$A$6,$B$3:$B$6-$B$2:$B$5)-SUM($A10:E10) -> 2500 | G10: =SUMPRODUCT(--(SUM($B9:G9)>=$A$3:$A$6),SUM($B9:G9)-$A$3:$A$6,$B$3:$B$6-$B$2:$B$5)-SUM($A10:F10) -> 0 | H10: =SUMPRODUCT(--(SUM($B9:H9)>=$A$3:$A$6),SUM($B9:H9)-$A$3:$A$6,$B$3:$B$6-$B$2:$B$5)-SUM($A10:G10) -> 0 | I10: =SUMPRODUCT(--(SUM($B9:I9)>=$A$3:$A$6),SUM($B9:I9)-$A$3:$A$6,$B$3:$B$6-$B$2:$B$5)-SUM($A10:H10) -> 0 | J10: =SUMPRODUCT(--(SUM($B9:J9)>=$A$3:$A$6),SUM($B9:J9)-$A$3:$A$6,$B$3:$B$6-$B$2:$B$5)-SUM($A10:I10) -> 0 | K10: =SUMPRODUCT(--(SUM($B9:K9)>=$A$3:$A$6),SUM($B9:K9)-$A$3:$A$6,$B$3:$B$6-$B$2:$B$5)-SUM($A10:J10) -> 0 | L10: =SUMPRODUCT(--(SUM($B9:L9)>=$A$3:$A$6),SUM($B9:L9)-$A$3:$A$6,$B$3:$B$6-$B$2:$B$5)-SUM($A10:K10) -> 0 | M10: =SUMPRODUCT(--(SUM($B9:M9)>=$A$3:$A$6),SUM($B9:M9)-$A$3:$A$6,$B$3:$B$6-$B$2:$B$5)-SUM($A10:L10) -> 0
A12: cum | B12: =SUM($B9:B9) -> 15000 | C12: =SUM($B9:C9) -> 35000 | D12: =SUM($B9:D9) -> 45000 | E12: =SUM($B9:E9) -> 63000 | F12: =SUM($B9:F9) -> 73000 | G12: =SUM($B9:G9) -> 73000
C14: (20000-15000)*0.1 | D14: =(20000-15000)*0.1 -> 500
C15: (35000-20000)*0.15 | D15: =(35000-20000)*0.15 -> 2250 | E15: =SUM(D14:D15) -> 2750
C16: 35000*.1 | D16: =(35000*0.1) -> 3500
C17: 15000*.05 | D17: =15000*0.05 -> 750 | E17: =SUM(D16:D17) -> 4250
C18: 1500 | D18: 1500 | E18: =E17-D18 -> 2750
A20: Formula 2 | B20: =IF(VLOOKUP(SUM($B9:B9),$A$3:$A$6,1)-SUM(A9:$B9)<0,B9*VLOOKUP(SUM($B9:B9),$A$3:$B$6,2),(VLOOKUP(SUM($B9:B9),$A$3:$A$6,1)-SUM(A9:$B9))*INDEX($B$3:$B$6,MATCH(SUM($B9:B9),$A$3:$A$6)-1)+(SUM($B9:B9)-VLOOKUP(SUM($B9:B9),$A$3:$A$6,1))*INDEX($B$3:$B$6,MATCH(SUM($B9:B9),$A$3:$A$6))) -> 1500 | C20: =IF(VLOOKUP(SUM($B9:C9),$A$3:$A$6,1)-SUM(B9:$B9)<0,C9*VLOOKUP(SUM($B9:C9),$A$3:$B$6,2),(VLOOKUP(SUM($B9:C9),$A$3:$A$6,1)-SUM(B9:$B9))*INDEX($B$3:$B$6,MATCH(SUM($B9:C9),$A$3:$A$6)-1)+(SUM($B9:C9)-VLOOKUP(SUM($B9:C9),$A$3:$A$6,1))*INDEX($B$3:$B$6,MATCH(SUM($B9:C9),$A$3:$A$6))) -> 2750 | D20: =IF(VLOOKUP(SUM($B9:D9),$A$3:$A$6,1)-SUM($B9:C9)<0,D9*VLOOKUP(SUM($B9:D9),$A$3:$B$6,2),(VLOOKUP(SUM($B9:D9),$A$3:$A$6,1)-SUM($B9:C9))*INDEX($B$3:$B$6,MATCH(SUM($B9:D9),$A$3:$A$6)-1)+(SUM($B9:D9)-VLOOKUP(SUM($B9:D9),$A$3:$A$6,1))*INDEX($B$3:$B$6,MATCH(SUM($B9:D9),$A$3:$A$6))) -> 1750 | E20: =IF(VLOOKUP(SUM($B9:E9),$A$3:$A$6,1)-SUM($B9:D9)<0,E9*VLOOKUP(SUM($B9:E9),$A$3:$B$6,2),(VLOOKUP(SUM($B9:E9),$A$3:$A$6,1)-SUM($B9:D9))*INDEX($B$3:$B$6,MATCH(SUM($B9:E9),$A$3:$A$6)-1)+(SUM($B9:E9)-VLOOKUP(SUM($B9:E9),$A$3:$A$6,1))*INDEX($B$3:$B$6,MATCH(SUM($B9:E9),$A$3:$A$6))) -> 3750 | F20: =IF(VLOOKUP(SUM($B9:F9),$A$3:$A$6,1)-SUM($B9:E9)<0,F9*VLOOKUP(SUM($B9:F9),$A$3:$B$6,2),(VLOOKUP(SUM($B9:F9),$A$3:$A$6,1)-SUM($B9:E9))*INDEX($B$3:$B$6,MATCH(SUM($B9:F9),$A$3:$A$6)-1)+(SUM($B9:F9)-VLOOKUP(SUM($B9:F9),$A$3:$A$6,1))*INDEX($B$3:$B$6,MATCH(SUM($B9:F9),$A$3:$A$6))) -> 2500 | G20: =IF(VLOOKUP(SUM($B9:G9),$A$3:$A$6,1)-SUM($B9:F9)<0,G9*VLOOKUP(SUM($B9:G9),$A$3:$B$6,2),(VLOOKUP(SUM($B9:G9),$A$3:$A$6,1)-SUM($B9:F9))*INDEX($B$3:$B$6,MATCH(SUM($B9:G9),$A$3:$A$6)-1)+(SUM($B9:G9)-VLOOKUP(SUM($B9:G9),$A$3:$A$6,1))*INDEX($B$3:$B$6,MATCH(SUM($B9:G9),$A$3:$A$6))) -> 0 | H20: =IF(VLOOKUP(SUM($B9:H9),$A$3:$A$6,1)-SUM($B9:G9)<0,H9*VLOOKUP(SUM($B9:H9),$A$3:$B$6,2),(VLOOKUP(SUM($B9:H9),$A$3:$A$6,1)-SUM($B9:G9))*INDEX($B$3:$B$6,MATCH(SUM($B9:H9),$A$3:$A$6)-1)+(SUM($B9:H9)-VLOOKUP(SUM($B9:H9),$A$3:$A$6,1))*INDEX($B$3:$B$6,MATCH(SUM($B9:H9),$A$3:$A$6))) -> 0 | I20: =IF(VLOOKUP(SUM($B9:I9),$A$3:$A$6,1)-SUM($B9:H9)<0,I9*VLOOKUP(SUM($B9:I9),$A$3:$B$6,2),(VLOOKUP(SUM($B9:I9),$A$3:$A$6,1)-SUM($B9:H9))*INDEX($B$3:$B$6,MATCH(SUM($B9:I9),$A$3:$A$6)-1)+(SUM($B9:I9)-VLOOKUP(SUM($B9:I9),$A$3:$A$6,1))*INDEX($B$3:$B$6,MATCH(SUM($B9:I9),$A$3:$A$6))) -> 0 | J20: =IF(VLOOKUP(SUM($B9:J9),$A$3:$A$6,1)-SUM($B9:I9)<0,J9*VLOOKUP(SUM($B9:J9),$A$3:$B$6,2),(VLOOKUP(SUM($B9:J9),$A$3:$A$6,1)-SUM($B9:I9))*INDEX($B$3:$B$6,MATCH(SUM($B9:J9),$A$3:$A$6)-1)+(SUM($B9:J9)-VLOOKUP(SUM($B9:J9),$A$3:$A$6,1))*INDEX($B$3:$B$6,MATCH(SUM($B9:J9),$A$3:$A$6))) -> 0 | K20: =IF(VLOOKUP(SUM($B9:K9),$A$3:$A$6,1)-SUM($B9:J9)<0,K9*VLOOKUP(SUM($B9:K9),$A$3:$B$6,2),(VLOOKUP(SUM($B9:K9),$A$3:$A$6,1)-SUM($B9:J9))*INDEX($B$3:$B$6,MATCH(SUM($B9:K9),$A$3:$A$6)-1)+(SUM($B9:K9)-VLOOKUP(SUM($B9:K9),$A$3:$A$6,1))*INDEX($B$3:$B$6,MATCH(SUM($B9:K9),$A$3:$A$6))) -> 0 | L20: =IF(VLOOKUP(SUM($B9:L9),$A$3:$A$6,1)-SUM($B9:K9)<0,L9*VLOOKUP(SUM($B9:L9),$A$3:$B$6,2),(VLOOKUP(SUM($B9:L9),$A$3:$A$6,1)-SUM($B9:K9))*INDEX($B$3:$B$6,MATCH(SUM($B9:L9),$A$3:$A$6)-1)+(SUM($B9:L9)-VLOOKUP(SUM($B9:L9),$A$3:$A$6,1))*INDEX($B$3:$B$6,MATCH(SUM($B9:L9),$A$3:$A$6))) -> 0 | M20: =IF(VLOOKUP(SUM($B9:M9),$A$3:$A$6,1)-SUM($B9:L9)<0,M9*VLOOKUP(SUM($B9:M9),$A$3:$B$6,2),(VLOOKUP(SUM($B9:M9),$A$3:$A$6,1)-SUM($B9:L9))*INDEX($B$3:$B$6,MATCH(SUM($B9:M9),$A$3:$A$6)-1)+(SUM($B9:M9)-VLOOKUP(SUM($B9:M9),$A$3:$A$6,1))*INDEX($B$3:$B$6,MATCH(SUM($B9:M9),$A$3:$A$6))) -> 0
A21: Formula 3 | B21: =IF(B9<=$A$25,B9*$B$3,IF(B9<=$A$26,($A$25*$B$3)+((B9-$A$25)*$B$4),IF(B9<=$A$27,($A$25*$B$3)+(($A$26-$A$25)*$B$4)+((B9-$A$26)*$B$5),($A$25*$B$3)+(($A$26-$A$25)*$B$4)+(($A$27-$A$26)*$B$5)+((B9-$A$27)*$B$6)))) -> 1500 | C21: =IF(SUM($B9:C9)<=$A$25,SUM($B9:C9)*$B$3,IF(SUM($B9:C9)<=$A$26,($A$25*$B$3)+((SUM($B9:C9)-$A$25)*$B$4),IF(SUM($B9:C9)<=$A$27,($A$25*$B$3)+(($A$26-$A$25)*$B$4)+((SUM($B9:C9)-$A$26)*$B$5),($A$25*$B$3)+(($A$26-$A$25)*$B$4)+(($A$27-$A$26)*$B$5)+((SUM($B9:C9)-$A$27)*$B$6))))-SUM($B21:B21) -> 2750 | D21: =IF(SUM($B9:D9)<=$A$25,SUM($B9:D9)*$B$3,IF(SUM($B9:D9)<=$A$26,($A$25*$B$3)+((SUM($B9:D9)-$A$25)*$B$4),IF(SUM($B9:D9)<=$A$27,($A$25*$B$3)+(($A$26-$A$25)*$B$4)+((SUM($B9:D9)-$A$26)*$B$5),($A$25*$B$3)+(($A$26-$A$25)*$B$4)+(($A$27-$A$26)*$B$5)+((SUM($B9:D9)-$A$27)*$B$6))))-SUM($B21:C21) -> 1750 | E21: =IF(SUM($B9:E9)<=$A$25,SUM($B9:E9)*$B$3,IF(SUM($B9:E9)<=$A$26,($A$25*$B$3)+((SUM($B9:E9)-$A$25)*$B$4),IF(SUM($B9:E9)<=$A$27,($A$25*$B$3)+(($A$26-$A$25)*$B$4)+((SUM($B9:E9)-$A$26)*$B$5),($A$25*$B$3)+(($A$26-$A$25)*$B$4)+(($A$27-$A$26)*$B$5)+((SUM($B9:E9)-$A$27)*$B$6))))-SUM($B21:D21) -> 3750 | F21: =IF(SUM($B9:F9)<=$A$25,SUM($B9:F9)*$B$3,IF(SUM($B9:F9)<=$A$26,($A$25*$B$3)+((SUM($B9:F9)-$A$25)*$B$4),IF(SUM($B9:F9)<=$A$27,($A$25*$B$3)+(($A$26-$A$25)*$B$4)+((SUM($B9:F9)-$A$26)*$B$5),($A$25*$B$3)+(($A$26-$A$25)*$B$4)+(($A$27-$A$26)*$B$5)+((SUM($B9:F9)-$A$27)*$B$6))))-SUM($B21:E21) -> 2500 | G21: =IF(SUM($B9:G9)<=$A$25,SUM($B9:G9)*$B$3,IF(SUM($B9:G9)<=$A$26,($A$25*$B$3)+((SUM($B9:G9)-$A$25)*$B$4),IF(SUM($B9:G9)<=$A$27,($A$25*$B$3)+(($A$26-$A$25)*$B$4)+((SUM($B9:G9)-$A$26)*$B$5),($A$25*$B$3)+(($A$26-$A$25)*$B$4)+(($A$27-$A$26)*$B$5)+((SUM($B9:G9)-$A$27)*$B$6))))-SUM($B21:F21) -> 0 | H21: =IF(SUM($B9:H9)<=$A$25,SUM($B9:H9)*$B$3,IF(SUM($B9:H9)<=$A$26,($A$25*$B$3)+((SUM($B9:H9)-$A$25)*$B$4),IF(SUM($B9:H9)<=$A$27,($A$25*$B$3)+(($A$26-$A$25)*$B$4)+((SUM($B9:H9)-$A$26)*$B$5),($A$25*$B$3)+(($A$26-$A$25)*$B$4)+(($A$27-$A$26)*$B$5)+((SUM($B9:H9)-$A$27)*$B$6))))-SUM($B21:G21) -> 0 | I21: =IF(SUM($B9:I9)<=$A$25,SUM($B9:I9)*$B$3,IF(SUM($B9:I9)<=$A$26,($A$25*$B$3)+((SUM($B9:I9)-$A$25)*$B$4),IF(SUM($B9:I9)<=$A$27,($A$25*$B$3)+(($A$26-$A$25)*$B$4)+((SUM($B9:I9)-$A$26)*$B$5),($A$25*$B$3)+(($A$26-$A$25)*$B$4)+(($A$27-$A$26)*$B$5)+((SUM($B9:I9)-$A$27)*$B$6))))-SUM($B21:H21) -> 0 | J21: =IF(SUM($B9:J9)<=$A$25,SUM($B9:J9)*$B$3,IF(SUM($B9:J9)<=$A$26,($A$25*$B$3)+((SUM($B9:J9)-$A$25)*$B$4),IF(SUM($B9:J9)<=$A$27,($A$25*$B$3)+(($A$26-$A$25)*$B$4)+((SUM($B9:J9)-$A$26)*$B$5),($A$25*$B$3)+(($A$26-$A$25)*$B$4)+(($A$27-$A$26)*$B$5)+((SUM($B9:J9)-$A$27)*$B$6))))-SUM($B21:I21) -> 0 | K21: =IF(SUM($B9:K9)<=$A$25,SUM($B9:K9)*$B$3,IF(SUM($B9:K9)<=$A$26,($A$25*$B$3)+((SUM($B9:K9)-$A$25)*$B$4),IF(SUM($B9:K9)<=$A$27,($A$25*$B$3)+(($A$26-$A$25)*$B$4)+((SUM($B9:K9)-$A$26)*$B$5),($A$25*$B$3)+(($A$26-$A$25)*$B$4)+(($A$27-$A$26)*$B$5)+((SUM($B9:K9)-$A$27)*$B$6))))-SUM($B21:J21) -> 0 | L21: =IF(SUM($B9:L9)<=$A$25,SUM($B9:L9)*$B$3,IF(SUM($B9:L9)<=$A$26,($A$25*$B$3)+((SUM($B9:L9)-$A$25)*$B$4),IF(SUM($B9:L9)<=$A$27,($A$25*$B$3)+(($A$26-$A$25)*$B$4)+((SUM($B9:L9)-$A$26)*$B$5),($A$25*$B$3)+(($A$26-$A$25)*$B$4)+(($A$27-$A$26)*$B$5)+((SUM($B9:L9)-$A$27)*$B$6))))-SUM($B21:K21) -> 0 | M21: =IF(SUM($B9:M9)<=$A$25,SUM($B9:M9)*$B$3,IF(SUM($B9:M9)<=$A$26,($A$25*$B$3)+((SUM($B9:M9)-$A$25)*$B$4),IF(SUM($B9:M9)<=$A$27,($A$25*$B$3)+(($A$26-$A$25)*$B$4)+((SUM($B9:M9)-$A$26)*$B$5),($A$25*$B$3)+(($A$26-$A$25)*$B$4)+(($A$27-$A$26)*$B$5)+((SUM($B9:M9)-$A$27)*$B$6))))-SUM($B21:L21) -> 0
A24: Max
A25: 20000
A26: 40000
A27: 60000

Sheet (674)
A1: Aladin: | B1: http://www.mrexcel.com/forum/showthread.php?p=2386428&posted=1
A2: VoG
A3: Counting with Two OR criteria
A4: Count "Not Started" or blanks | C4: Date | D4: Project | E4: Status | G4: Categories
A5: =COUNTIF(E5:E15,"Not Started")+COUNTIF(E5:E15,"") -> 6 | C5: 2010-07-23 | D5: Project 1 | E5: Done | G5: Done
A6: =SUMPRODUCT((E5:E15="")+(E5:E15="Not Started")) -> 6 | C6: 2010-07-24 | D6: Project 2 | E6: Done | G6: Mid
A7: =SUM(COUNTIF(E5:E15,{"","Not Started"})) -> 6 | C7: 2010-07-25 | D7: Project 3 | E7: Not Started | G7: Not Started
C8: 2010-07-26 | D8: Project 4
C9: 2010-07-27 | D9: Project 5
C10: 2010-07-28 | D10: Project 6 | E10: Not Started
C11: 2010-07-29 | D11: Project 7
C12: 2010-07-30 | D12: Project 8 | E12: Done
C13: 2010-07-31 | D13: Project 9 | E13: Mid
C14: 2010-08-01 | D14: Project 10 | E14: Done
C15: 2010-08-02 | D15: Project 11

Sheet (674an)
A1: Aladin: | B1: http://www.mrexcel.com/forum/showthread.php?p=2386428&posted=1
A2: VoG
A3: Counting with Two OR creiteria
A4: Count "Not Started" or blanks | C4: Date | D4: Project | E4: Status | G4: Categories
A5: =COUNTIF(E5:E15,"")+COUNTIF(E5:E15,"Not Started") -> 6 | C5: 2010-07-23 | D5: Project 1 | E5: Done | G5: Done
A6: =SUMPRODUCT((E5:E15="")+(E5:E15="Not Started")) -> 6 | C6: 2010-07-24 | D6: Project 2 | E6: Done | G6: Mid
A7: =SUM(COUNTIF(E5:E15,{"","Not Started"})) -> 6 | C7: 2010-07-25 | D7: Project 3 | E7: Not Started | G7: Not Started
C8: 2010-07-26 | D8: Project 4
C9: 2010-07-27 | D9: Project 5
C10: 2010-07-28 | D10: Project 6 | E10: Not Started
C11: 2010-07-29 | D11: Project 7
C12: 2010-07-30 | D12: Project 8 | E12: Done
C13: 2010-07-31 | D13: Project 9 | E13: Mid
C14: 2010-08-01 | D14: Project 10 | E14: Done
C15: 2010-08-02 | D15: Project 11

Sheet (675)
A1: ITEM | B1: PRICE | D1: formula used: | F1: Item | G1: Lower | H1: Upper | J1: Tshirt Price Range | K1: $50 to $100
A2: Tshirt | B2: 25 | F2: Tshirt | G2: 50 | H2: 100 | J2: Pants Price Range | K2: $100 to $200
A3: Pants | B3: 200 | F3: Pants | G3: 100 | H3: 200 | J3: Blouse Price Range | K3: $75 to $150
A4: Blouse | B4: 150 | F4: Blouse | G4: 75 | H4: 150 | J4: Bag Price Range | K4: $200 to $500
F5: Bag | G5: 200 | H5: 500

Sheet (675an)
A1: ITEM | B1: PRICE | D1: formula used: | F1: Item | G1: Lower | H1: Upper | J1: Tshirt Price Range | K1: $50 to $100
A2: Tshirt | B2: 100 | D2: =AND(B2>=VLOOKUP(A2,$F$2:$H$5,2,0),B2<=VLOOKUP(A2,$F$2:$H$5,3,0)) -> TRUE | F2: Tshirt | G2: 50 | H2: 100 | J2: Pants Price Range | K2: $100 to $200
A3: Pants | B3: 200 | D3: TRUE | F3: Pants | G3: 100 | H3: 200 | J3: Blouse Price Range | K3: $75 to $150
A4: Blouse | B4: 150 | D4: TRUE | F4: Blouse | G4: 75 | H4: 150 | J4: Bag Price Range | K4: $200 to $500
A5: Bag | B5: 200 | D5: TRUE | F5: Bag | G5: 200 | H5: 500
A6: Pants | D6: FALSE

Sheet (676)
A2: Pro1 | B2: 0 | C2: 4 | D2: 1
A3: Pro2 | B3: 2 | C3: 6 | D3: 5
A4: Pro3 | B4: 1 | C4: 2 | D4: 4
A6: Total
A11: Pro1 | B11: =INT(RAND()*7) -> 4 | C11: 2 | D11: 1
A12: Pro2 | B12: 1 | C12: 6 | D12: 2 | G12: 4
A13: Pro3 | B13: 0 | C13: 5 | D13: 0
H15: =SUM($B$11:INDEX($13:$13,SUMPRODUCT(MAX(($11:$13<>"")*COLUMN($11:$13)*ISNUMBER($11:$13))))) -> 25
H16: =SUM($B$11:INDEX($13:$13,_xlfn.AGGREGATE(14,6,($11:$13<>"")*COLUMN($11:$13)*ISNUMBER($11:$13),1))) -> 25
H17: =SUM(B11:G13) -> 25

Sheet (676an)
A2: Pro1 | B2: 0 | C2: 4 | D2: 1 | E2: 1 | F2: 1
A3: Pro2 | B3: 2 | C3: 6 | D3: 5 | E3: 5 | F3: 5
A4: Pro3 | B4: 1 | C4: 2 | D4: 4 | E4: 4 | F4: 4
A6: Total | B6: =$B$2:INDEX($B$4:$AE$4,MATCH(10^10,$B$4:$AE$4)) -> 0
B8: =SUM(RangeValuesFirst) -> 45
A11: Pro1 | B11: =INT(RAND()*7) -> 4 | C11: 2 | D11: 3
A12: Pro2 | B12: 5 | C12: 3 | D12: 6 | G12: 4
A13: Pro3 | B13: 5 | C13: 2 | D13: 3
H15: =SUM($B$11:INDEX($13:$13,SUMPRODUCT(MAX(($11:$13<>"")*COLUMN($11:$13)*ISNUMBER($11:$13))))) -> 37
H16: =SUM($B$11:INDEX($13:$13,_xlfn.AGGREGATE(14,6,($11:$13<>"")*COLUMN($11:$13)*ISNUMBER($11:$13),1))) -> 37
H17: =SUM(B11:G13) -> 37

Sheet (677)
A1: Player | B1: Date | C1: Score | E1: Name | F1: ="Average Last "&H2 -> Average Last 3 | H1: Find last
A2: Mary | B2: 2010-07-01 | C2: 10 | E2: Mary | H2: 3
A3: Kate | B3: 2010-07-02 | C3: 4 | E3: Kate
A4: Kate | B4: 2010-07-03 | C4: 7 | E4: Joe
A5: Kate | B5: 2010-07-05 | C5: 4
A6: Kate | B6: 2010-07-05 | C6: 3 | E6: post: | F6: http://www.mrexcel.com/forum/showthread.php?t=482169
A7: Kate | B7: 2010-07-06 | C7: 7 | F7: Aladin
A8: Mary | B8: 2010-07-07 | C8: 10 | F8: pgc01
A9: Mary | B9: 2010-07-08 | C9: 5
A10: Mary | B10: 2010-07-09 | C10: 7
A11: Kate | B11: 2010-07-10 | C11: 10
A12: Joe | B12: 2010-07-11 | C12: 3

Sheet (677an)
A1: Player | B1: Date | C1: Score | E1: Name | F1: ="Average Last "&H2 -> Average Last 3 | H1: Find last
A2: Mary | B2: 2010-07-01 | C2: 10 | E2: Mary | F2: =AVERAGE(IF($A$2:$A$12=E2,IF(ROW($B$2:$B$12)>=LARGE(IF($A$2:$A$12=E2,ROW($B$2:$B$12)),MIN(COUNTIF($A$2:$A$12,E2),$H$2)),$C$2:$C$12))) -> 7.333333333 | H2: 3
A3: Kate | B3: 2010-07-02 | C3: 4 | E3: Kate | F3: =AVERAGE(IF($A$2:$A$12=E3,IF(ROW($B$2:$B$12)>=LARGE(IF($A$2:$A$12=E3,ROW($B$2:$B$12)),MIN(COUNTIF($A$2:$A$12,E3),$H$2)),$C$2:$C$12))) -> 6.666666667 | J3: =AVERAGE(C11,C7,C6) -> 6.666666667
A4: Kate | B4: 2010-07-03 | C4: 7 | E4: Joe | F4: =AVERAGE(IF($A$2:$A$12=E4,IF(ROW($B$2:$B$12)>=LARGE(IF($A$2:$A$12=E4,ROW($B$2:$B$12)),MIN(COUNTIF($A$2:$A$12,E4),$H$2)),$C$2:$C$12))) -> 3
A5: Kate | B5: 2010-07-05 | C5: 4
A6: Kate | B6: 2010-07-05 | C6: 3 | E6: post: | F6: http://www.mrexcel.com/forum/showthread.php?t=482169
A7: Kate | B7: 2010-07-06 | C7: 7 | F7: Aladin
A8: Mary | B8: 2010-07-07 | C8: 10 | F8: pgc01
A9: Mary | B9: 2010-07-08 | C9: 5 | F9: =IF(COUNTIF($A$2:$A$12,E2)<$H$2,"Not Enough",AVERAGE(IF($A$2:$A$12=E2,IF(ROW($B$2:$B$12)>=LARGE(IF($A$2:$A$12=E2,ROW($B$2:$B$12)),$H$2),$C$2:$C$12)))) -> 7.333333333
A10: Mary | B10: 2010-07-09 | C10: 7 | F10: =IF(COUNTIF($A$2:$A$12,E3)<$H$2,"Not Enough",AVERAGE(IF($A$2:$A$12=E3,IF(ROW($B$2:$B$12)>=LARGE(IF($A$2:$A$12=E3,ROW($B$2:$B$12)),$H$2),$C$2:$C$12)))) -> 6.666666667
A11: Kate | B11: 2010-07-10 | C11: 10 | F11: =IF(COUNTIF($A$2:$A$12,E4)<$H$2,"Not Enough",AVERAGE(IF($A$2:$A$12=E4,IF(ROW($B$2:$B$12)>=LARGE(IF($A$2:$A$12=E4,ROW($B$2:$B$12)),$H$2),$C$2:$C$12)))) -> Not Enough
A12: Joe | B12: 2010-07-11 | C12: 3

Sheet (678)
A1: Team | B1: Deadline | C1: 2010-07-07 | D1: 2010-07-08 | E1: 2010-07-09 | F1: 2010-07-12 | G1: 2010-07-13 | H1: 2010-07-14 | I1: 2010-07-15 | J1: Total After Deadline
A2: Red | B2: 2010-07-13 | C2: 225 | D2: 225 | E2: 775 | F2: 0 | G2: 790 | H2: 0 | I2: 873
A3: Blue | B3: 2010-07-08 | C3: 0 | D3: 4055 | E3: 0 | F3: 1585 | G3: 325 | H3: 0 | I3: 760
A4: Green | B4: 2010-07-09 | C4: 500 | D4: 0 | E4: 1335 | F4: 0 | G4: 2585 | H4: 3040 | I4: 2046

Sheet (678an)
A1: Team | B1: Deadline | C1: 2010-07-07 | D1: 2010-07-08 | E1: 2010-07-09 | F1: 2010-07-12 | G1: 2010-07-13 | H1: 2010-07-14 | I1: 2010-07-15 | J1: Total After Deadline
A2: Red | B2: 2010-07-13 | C2: 225 | D2: 225 | E2: 775 | F2: 0 | G2: 790 | H2: 0 | I2: 873 | J2: =SUM(INDEX(C2:I2,MATCH(B2,$C$1:$I$1)):I2) -> 1663 | L2: =SUMPRODUCT(--($C$1:$I$1>=B2),C2:I2) -> 1663
A3: Blue | B3: 2010-07-08 | C3: 0 | D3: 4055 | E3: 0 | F3: 1585 | G3: 325 | H3: 0 | I3: 760 | J3: =SUM(INDEX(C3:I3,MATCH(B3,$C$1:$I$1)):I3) -> 6725 | L3: =SUMPRODUCT(--($C$1:$I$1>=B3),C3:I3) -> 6725
A4: Green | B4: 2010-07-09 | C4: 500 | D4: 0 | E4: 1335 | F4: 0 | G4: 2585 | H4: 3040 | I4: 2046 | J4: =SUM(INDEX(C4:I4,MATCH(B4,$C$1:$I$1)):I4) -> 9006 | L4: 9006

Sheet (679)
E1: 2003 method | F1: 2007/2010 method
A2: Date | B2: Monthly Withdrawals | D2: Year | E2: Annual Withdrawals | F2: Annual Withdrawals
A3: 2007-04-25 | B3: =RANDBETWEEN(15000,47000) -> 25096 | D3: 2005-12-31
A4: 2005-02-09 | B4: =RANDBETWEEN(15000,47000) -> 19346 | D4: 2006-12-31
A5: 2013-09-14 | B5: 45074 | D5: 2007-12-31
A6: 2006-12-25 | B6: 20571 | D6: 2008-12-31
A7: 2007-11-02 | B7: 15618 | D7: 2009-12-31
A8: 2009-12-09 | B8: 17559 | D8: 2010-12-31
A9: 2006-09-21 | B9: 40683 | D9: 2011-12-31
A10: 2008-09-30 | B10: 29422 | D10: 2012-12-31
A11: 2014-01-08 | B11: 29351 | D11: 2013-12-31
A12: 2005-10-25 | B12: 19477 | D12: 2014-12-31
A13: 2005-09-09 | B13: 31415
A14: 2011-04-26 | B14: 21770
A15: 2012-02-11 | B15: 33542
A16: 2008-06-21 | B16: 46099
A17: 2010-10-07 | B17: 17850
A18: 2014-02-27 | B18: 23195
A19: 2008-02-06 | B19: 35583
A20: 2011-06-11 | B20: 23757
A21: 2013-08-27 | B21: 17175
A22: 2014-09-18 | B22: 37635
A23: 2013-02-21 | B23: 16376
A24: 2013-05-18 | B24: 32194
A25: 2014-06-24 | B25: 40612
A26: 2013-04-21 | B26: 44458
A27: 2011-08-10 | B27: 16190
A28: 2011-04-22 | B28: 46369
A29: 2009-03-09 | B29: 19437
A30: 2014-04-30 | B30: 33202
A31: 2011-02-10 | B31: 16261
A32: 2006-12-24 | B32: 35133
A33: 2012-12-28 | B33: 30532
A34: 2014-08-02 | B34: 39712
A35: 2005-08-05 | B35: 36417
A36: 2012-02-28 | B36: 40222
A37: 2013-07-23 | B37: 42693
A38: 2006-12-29 | B38: 38029
A39: 2011-03-15 | B39: 41068
A40: 2009-06-23 | B40: 37650
A41: 2005-07-30 | B41: 34628
A42: 2005-02-15 | B42: 46231
A43: 2011-10-14 | B43: 31963
A44: 2005-08-21 | B44: 23705
A45: 2005-02-23 | B45: 17877
A46: 2013-01-30 | B46: 33019
A47: 2013-02-08 | B47: 35599
A48: 2008-10-20 | B48: 45743
A49: 2013-09-02 | B49: 28447
A50: 2009-01-02 | B50: 18437
A51: 2010-07-29 | B51: 46590
A52: 2007-09-05 | B52: 36561
A53: 2008-10-02 | B53: 35395
A54: 2010-01-09 | B54: 31135
A55: 2013-06-15 | B55: 44835
A56: 2005-10-01 | B56: 22693
A57: 2011-03-03 | B57: 34564
A58: 2011-01-24 | B58: 34752
A59: 2014-05-19 | B59: 43635
A60: 2009-06-21 | B60: 26399
A61: 2007-01-05 | B61: 32280
A62: 2014-10-23 | B62: 22222
A63: 2011-02-08 | B63: 39883
A64: 2005-12-17 | B64: 40391
A65: 2010-12-09 | B65: 37072
A66: 2013-01-21 | B66: 30686
A67: 2009-10-04 | B67: 42119
A68: 2012-12-10 | B68: =RANDBETWEEN(15000,47000) -> 44368
A69: 2011-10-17 | B69: 30310
A70: 2005-01-24 | B70: 35907
A71: 2006-05-20 | B71: 34155
A72: 2013-10-10 | B72: 33234
A73: 2013-06-10 | B73: 34989
A74: 2014-12-29 | B74: 30128
A75: 2014-01-19 | B75: 36676
A76: 2012-06-23 | B76: 42236
A77: 2009-02-14 | B77: 42121
A78: 2014-01-26 | B78: 27784
A79: 2007-01-27 | B79: 29656
A80: 2005-01-14 | B80: 21820
A81: 2006-01-06 | B81: 41111
A82: 2009-07-19 | B82: 33640
A83: 2006-09-13 | B83: 17667
A84: 2010-01-26 | B84: 23126
A85: 2010-12-13 | B85: 18635
A86: 2010-07-08 | B86: 31660
A87: 2008-11-02 | B87: 25514
A88: 2006-10-10 | B88: 44757
A89: 2006-02-15 | B89: 36806
A90: 2006-02-04 | B90: 42558
A91: 2006-01-30 | B91: 27755
A92: 2008-03-31 | B92: 23192
A93: 2008-08-03 | B93: 25299
A94: 2005-11-29 | B94: 40960
A95: 2005-12-06 | B95: 39413
A96: 2011-11-12 | B96: 36836
A97: 2012-01-01 | B97: 20330
A98: 2008-07-20 | B98: 43587
A99: 2008-08-20 | B99: 25437
A100: 2008-01-07 | B100: 26144
A101: 2010-01-12 | B101: 25853
A102: 2014-02-05 | B102: 24864
A103: 2011-02-05 | B103: 42876
A104: 2005-06-09 | B104: 21557
A105: 2009-06-21 | B105: 44110
A106: 2006-04-28 | B106: 40103
A107: 2009-12-21 | B107: 37693
A108: 2012-03-11 | B108: 34972
A109: 2009-08-26 | B109: 20819
A110: 2008-12-11 | B110: 44024
A111: 2007-08-25 | B111: 34204
A112: 2013-03-03 | B112: 37989
A113: 2008-02-20 | B113: 30595
A114: 2005-05-20 | B114: 22368
A115: 2010-05-07 | B115: 28540
A116: 2012-07-27 | B116: 27762
A117: 2009-08-05 | B117: 38680
A118: 2010-07-11 | B118: 29034
A119: 2013-04-17 | B119: 31579
A120: 2008-05-24 | B120: 35685
A121: 2006-12-09 | B121: 35483
A122: 2013-08-04 | B122: 34465

Sheet (679an)
E1: 2003 method | F1: 2007/2010 method
A2: Date | B2: Monthly Withdrawals | D2: Year | E2: Annual Withdrawals | F2: Annual Withdrawals
A3: 2007-04-25 | B3: =RANDBETWEEN(15000,47000) -> 31235 | D3: 2005-12-31 | E3: =SUMPRODUCT(--(YEAR(D3)=YEAR($A$3:$A$122)),$B$3:$B$122) -> 480904 | F3: =SUMIFS($B$3:$B$122,$A$3:$A$122,"<="&D3,$A$3:$A$122,">="&DATE(YEAR(D3),1,1)) -> 480904
A4: 2005-02-09 | B4: =RANDBETWEEN(15000,47000) -> 39037 | D4: 2006-12-31 | E4: =SUMPRODUCT(--(YEAR(D4)=YEAR($A$3:$A$122)),$B$3:$B$122) -> 405179 | F4: =SUMIFS($B$3:$B$122,$A$3:$A$122,"<="&D4,$A$3:$A$122,">="&DATE(YEAR(D4),1,1)) -> 405179
A5: 2013-09-14 | B5: 15263 | D5: 2007-12-31 | E5: 168085 | F5: 168085
A6: 2006-12-25 | B6: 24134 | D6: 2008-12-31 | E6: 368261 | F6: 368261
A7: 2007-11-02 | B7: 38511 | D7: 2009-12-31 | E7: 353669 | F7: 353669
A8: 2009-12-09 | B8: 42935 | D8: 2010-12-31 | E8: 322287 | F8: 322287
A9: 2006-09-21 | B9: 42202 | D9: 2011-12-31 | E9: 441514 | F9: 441514
A10: 2008-09-30 | B10: 19336 | D10: 2012-12-31 | E10: 229589 | F10: 229589
A11: 2014-01-08 | B11: 35594 | D11: 2013-12-31 | E11: 475625 | F11: 475625
A12: 2005-10-25 | B12: 29678 | D12: 2014-12-31 | E12: 351866 | F12: 351866
A13: 2005-09-09 | B13: 16974
A14: 2011-04-26 | B14: 26423
A15: 2012-02-11 | B15: 38502
A16: 2008-06-21 | B16: 35575
A17: 2010-10-07 | B17: 21451
A18: 2014-02-27 | B18: 26513
A19: 2008-02-06 | B19: 43256
A20: 2011-06-11 | B20: 33612
A21: 2013-08-27 | B21: 26768
A22: 2014-09-18 | B22: 16550
A23: 2013-02-21 | B23: 32406
A24: 2013-05-18 | B24: 40774
A25: 2014-06-24 | B25: 45599
A26: 2013-04-21 | B26: 23792
A27: 2011-08-10 | B27: 45746
A28: 2011-04-22 | B28: 24689
A29: 2009-03-09 | B29: 15908
A30: 2014-04-30 | B30: 33885
A31: 2011-02-10 | B31: 36909
A32: 2006-12-24 | B32: 23454
A33: 2012-12-28 | B33: 23002
A34: 2014-08-02 | B34: 41930
A35: 2005-08-05 | B35: 15762
A36: 2012-02-28 | B36: 27349
A37: 2013-07-23 | B37: 42065
A38: 2006-12-29 | B38: 34352
A39: 2011-03-15 | B39: 25295
A40: 2009-06-23 | B40: 37637
A41: 2005-07-30 | B41: 22965
A42: 2005-02-15 | B42: 32613
A43: 2011-10-14 | B43: 36280
A44: 2005-08-21 | B44: 33660
A45: 2005-02-23 | B45: 33194
A46: 2013-01-30 | B46: 15713
A47: 2013-02-08 | B47: 45529
A48: 2008-10-20 | B48: 16840
A49: 2013-09-02 | B49: 21368
A50: 2009-01-02 | B50: 29973
A51: 2010-07-29 | B51: 41219
A52: 2007-09-05 | B52: 21155
A53: 2008-10-02 | B53: 16691
A54: 2010-01-09 | B54: 38931
A55: 2013-06-15 | B55: 32785
A56: 2005-10-01 | B56: 25323
A57: 2011-03-03 | B57: 46419
A58: 2011-01-24 | B58: 18519
A59: 2014-05-19 | B59: 21923
A60: 2009-06-21 | B60: 23252
A61: 2007-01-05 | B61: 19634
A62: 2014-10-23 | B62: 28522
A63: 2011-02-08 | B63: 35239
A64: 2005-12-17 | B64: 38210
A65: 2010-12-09 | B65: 33727
A66: 2013-01-21 | B66: 22524
A67: 2009-10-04 | B67: 15918
A68: 2012-12-10 | B68: =RANDBETWEEN(15000,47000) -> 19816
A69: 2011-10-17 | B69: 33774
A70: 2005-01-24 | B70: 44445
A71: 2006-05-20 | B71: 15986
A72: 2013-10-10 | B72: 45662
A73: 2013-06-10 | B73: 46292
A74: 2014-12-29 | B74: 27560
A75: 2014-01-19 | B75: 18085
A76: 2012-06-23 | B76: 26695
A77: 2009-02-14 | B77: 32119
A78: 2014-01-26 | B78: 28004
A79: 2007-01-27 | B79: 32965
A80: 2005-01-14 | B80: 45625
A81: 2006-01-06 | B81: 33376
A82: 2009-07-19 | B82: 30368
A83: 2006-09-13 | B83: 46697
A84: 2010-01-26 | B84: 38032
A85: 2010-12-13 | B85: 22898
A86: 2010-07-08 | B86: 25374
A87: 2008-11-02 | B87: 16919
A88: 2006-10-10 | B88: 22041
A89: 2006-02-15 | B89: 38114
A90: 2006-02-04 | B90: 27813
A91: 2006-01-30 | B91: 40474
A92: 2008-03-31 | B92: 17405
A93: 2008-08-03 | B93: 15174
A94: 2005-11-29 | B94: 25383
A95: 2005-12-06 | B95: 15925
A96: 2011-11-12 | B96: 46120
A97: 2012-01-01 | B97: 22363
A98: 2008-07-20 | B98: 20442
A99: 2008-08-20 | B99: 40707
A100: 2008-01-07 | B100: 38172
A101: 2010-01-12 | B101: 45793
A102: 2014-02-05 | B102: 27701
A103: 2011-02-05 | B103: 32489
A104: 2005-06-09 | B104: 25198
A105: 2009-06-21 | B105: 29592
A106: 2006-04-28 | B106: 15164
A107: 2009-12-21 | B107: 46587
A108: 2012-03-11 | B108: 28678
A109: 2009-08-26 | B109: 21564
A110: 2008-12-11 | B110: 32443
A111: 2007-08-25 | B111: 24585
A112: 2013-03-03 | B112: 15452
A113: 2008-02-20 | B113: 18826
A114: 2005-05-20 | B114: 36912
A115: 2010-05-07 | B115: 20392
A116: 2012-07-27 | B116: 43184
A117: 2009-08-05 | B117: 27816
A118: 2010-07-11 | B118: 34470
A119: 2013-04-17 | B119: 15074
A120: 2008-05-24 | B120: 36475
A121: 2006-12-09 | B121: 41372
A122: 2013-08-04 | B122: 34158

Sheet (680)
A1: Rev | B1: 100 | C1: 100 | D1: 100
A2: =A9 -> Ex1 | B2: =B$1*$B9 -> 15 | C2: 15 | D2: 15
A3: =A10 -> Ex2 | B3: 17 | C3: 17 | D3: 17
A4: =A11 -> Ex3 | B4: 5 | C4: 5 | D4: 5
A5: =A12 -> Ex4 | B5: 35 | C5: 35 | D5: 35
A6: =A13 -> Ex5 | B6: 68 | C6: 68 | D6: 68
A8: assumptions | D8: scenarios button
A9: Ex1 | B9: 0.15
A10: Ex2 | B10: 0.17
A11: Ex3 | B11: 0.05
A12: Ex4 | B12: 0.35
A13: Ex5 | B13: 0.68

Sheet (68oan)
A1: Rev | B1: 100 | C1: 100 | D1: 100
A2: =A9 -> Ex1 | B2: =B$1*$B9 -> 15 | C2: 15 | D2: 15
A3: =A10 -> Ex2 | B3: 17 | C3: 17 | D3: 17
A4: =A11 -> Ex3 | B4: 5 | C4: 5 | D4: 5
A5: =A12 -> Ex4 | B5: 35 | C5: 35 | D5: 35
A6: =A13 -> Ex5 | B6: 68 | C6: 68 | D6: 68
A8: assumptions | D8: scenarios button
A9: Ex1 | B9: 0.15
A10: Ex2 | B10: 0.17
A11: Ex3 | B11: 0.05
A12: Ex4 | B12: 0.35
A13: Ex5 | B13: 0.68

Sheet (681)
A1: Smallest Number That Is Greater Than Zero | C1: =RANDBETWEEN(-50,200)/10 -> 13.8
C2: 6.7
C3: 4.3
A4: Remember to use: Ctrl + Shift + Enter | C4: 13.3
C5: -4
C6: 16.9
C7: 11
C8: 4.4
C9: 17.4
C10: 13.4
C11: 17.2
C12: 16.6
C13: 8.7
C14: -2.2
C15: 3.7
C16: 10.6
C17: -4.5
C18: 19.7
C19: 18.4
C20: 15.6
C21: 3.9
C22: 10.4
C23: 8.8
C24: 0.6
C25: -1.7
C26: 8.1

Sheet (681an)
A1: Smallest Number That Is Greater Than Zero | C1: =RANDBETWEEN(-50,200)/10 -> -2.2
A2: =MIN(IF(C1:C26>0,C1:C26)) -> 1.8 | C2: 2.3
C3: 2.1
A4: Remember to use: Ctrl + Shift + Enter | C4: 8.3
C5: 15.6
C6: 13.4
C7: 11.2
C8: 11
C9: 6.3
C10: 3
C11: 15.8
C12: 4
C13: 11.5
C14: 14
C15: 1.9
C16: 14
C17: -0.2
C18: -1.7
C19: -2.6
C20: 14
C21: 15.9
C22: 1.8
C23: 10.5
C24: 3.9
C25: 5.5
C26: 10.7

Sheet (682)
A1: Average | C1: Times Entered As Text | E1: Times Entered As Text | G1: Average | I1: Times Entered As Text | K1: Average
C2: 08:30 | E2: 08:30 | G2: =AVERAGE(E2:E16) ->  | I2: 08:30
A3: =AVERAGE(IF(C2:C16<>"",C2:C16+0)) -> 0.1908333333 | C3: 06:12 | E3: 06:12 | I3: 06:12
A4: Average of all text | C4: 06:12 | E4: 06:12 | I4: 06:12
A5: =AVERAGE(C2:C16) ->  | C5: 02:30 | E5: 02:30 | I5: 02:30
C6: 01:06 | E6: 01:06 | I6: 01:06
C7: 07:06 | E7: 07:06 | I7: 07:06
C8: 02:54 | E8: 02:54 | I8: 02:54
C9: 07:24 | E9: 07:24 | I9: 07:24
C10: 04:06 | E10: 04:06 | I10: 04:06
C11: 06:36 | E11: 06:36 | I11: 06:36
C12: 06:00 | E12: 06:00 | I12: 06:00
C13: 05:00 | E13: 05:00 | I13: 05:00
C14: 01:36 | E14: 01:36 | I14: 01:36
C15: 02:18 | E15: 02:18 | I15: 02:18
C16: 01:12 | E16: 01:12 | I16: 01:12

Sheet (682an)
A1: Average | C1: Times Entered As Text | E1: Times Entered As Text | G1: Average | I1: Times Entered As Text | K1: Average
A2: =AVERAGE(IF(C2:C16<>"",C2:C16+0)) -> 0.1860119048 | C2: 08:30 | E2: 08:30:00 | G2: =AVERAGE(E2:E16) -> 0.1908333333 | I2: 08:30 | K2: =AVERAGE(IF(I2:I16<>"",TRIM(I2:I16)+0)) -> 0.1908333333
A3: =AVERAGE(IF(C2:C16<>"",C2:C16+0)) -> 0.1860119048 | C3: 06:12 | E3: 06:12:00 | I3: 06:12
A4: Average of all text | E4: 06:12:00 | I4: 06:12
A5: =AVERAGE(C2:C16) ->  | C5: 02:30 | E5: 02:30:00 | I5: 02:30
C6: 01:06 | E6: 01:06:00 | I6: 01:06
C7: 07:06 | E7: 07:06:00 | I7: 07:06
C8: 02:54 | E8: 02:54:00 | I8: 02:54
C9: 07:24 | E9: 07:24:00 | I9: 07:24
C10: 04:06 | E10: 04:06:00 | I10: 04:06
C11: 06:36 | E11: 06:36:00 | I11: 06:36
C12: 06:00 | E12: 06:00:00 | I12: 06:00
C13: 05:00 | E13: 05:00:00 | I13: 05:00
C14: 01:36 | E14: 01:36:00 | I14: 01:36
C15: 02:18 | E15: 02:18:00 | I15: 02:18
C16: 01:12 | E16: 01:12:00 | I16: 01:12
